[Event "EYCC 2017"]
[Site "Mamaia"]
[Date "2017.09.13"]
[Round "8"]
[White "Zarubitski, Viachaslau"]
[Black "Oboladze, Luka"]
[Result "0-1"]
[ECO "A36"]
[WhiteElo "2325"]
[BlackElo "2083"]
[Annotator "NA RC"]
[PlyCount "78"]
[EventDate "2017.??.??"]
[EventType "swiss"]
[EventCountry "ROU"]
[SourceTitle "playchess.com"]
[Source "ChessBase"]
[SourceQuality "1"]
[TimeControl "40/5400+30:1800+30"]

1. c4 {[%emt 0:00:00]} c5 {[%emt 0:01:30]} 2. Nc3 {[%emt 0:00:00]} Nc6 {[%emt 0:00:20]} 3. g3 {[%emt 0:00:23]} g6 {[%emt 0:00:09]} 4. Bg2 {[%emt 0:00:47]} Bg7 {[%emt 0:00:12]} 5. e3 {[%emt 0:00:21]} d6 {[%emt 0:01:41]} 6. Nge2 {[%emt 0:00:28]} h5 {[%emt 0:07:34]} 7. h3 {[%emt 0:14:13]} Nh6 {[%emt 0:06:47]} 8. e4 {[%emt 0:01:31]} h4 {[%emt 0:05:01]} 9. g4 {[%emt 0:01:31]} f5 {[%emt 0:03:13]} 10. gxf5 {[%emt 0:20:14]} gxf5 {[%emt 0:00:16]} 11. d3 {[%emt 0:00:19]} Be6 {[%emt 0:12:59]} 12. Rg1 {[%emt 0:28:08]} Qd7 {[%emt 0:09:27]} 13. Bg5 {[%emt 0:00:30]} O-O-O {[%emt 0:08:36]} 14. Bxh4 {[%emt 0:07:28]} Nf7 {[%emt 0:04:38]} 15. Bg3 {[%emt 0:01:57]} fxe4 {[%emt 0:00:44]} 16. Nxe4 {[%emt 0:03:21]} Bxh3 {[%emt 0:02:28]} 17. Bxh3 {[%emt 0:00:34]} Rxh3 {[%emt 0:00:48]} 18. Nf4 {[%emt 0:03:57]} Rh6 {[%emt 0:03:30]} 19. Qa4 {[%emt 0:06:14]} Bxb2 {[%emt 0:08:32]} 20. Rb1 {[%emt 0:00:00]} Be5 {[%emt 0:00:31]} 21. Kd2 {[%emt 0:01:20]} e6 {[%emt 0:03:15]} 22. Ne2 {[%emt 0:01:27]} Qc7 {[%emt 0:02:20]} 23. Bxe5 {[%emt 0:01:13]} Nfxe5 {[%emt 0:00:16]} 24. Rg3 {[%emt 0:00:18]} Qa5+ {[%emt 0:02:32]} 25. Qxa5 {[%emt 0:00:33]} Nxa5 {[%emt 0:00:04]} 26. f4 {[%emt 0:00:45]} Nec6 {[%emt 0:01:14]} 27. Rbg1 {[%emt 0:01:05]} Ne7 {[%emt 0:04:27]} 28. Rg7 {[%emt 0:01:00]} Nac6 {[%emt 0:00:09]} 29. Rf7 {[%emt 0:00:36]} Nf5 {[%emt 0:01:46]} 30. N4g3 {[%emt 0:02:30]} Nfd4 {[%emt 0:03:13]} 31. Nxd4 {[%emt 0:00:09]} Nxd4 {[%emt 0:01:20]} 32. Rh1 {[%emt 0:01:55]} Rxh1 {[%emt 0:01:40]} 33. Nxh1 {[%emt 0:00:01]} Rd7 {[%emt 0:02:12]} 34. Rf8+ {[%emt 0:00:06]} Kc7 {[%emt 0:00:15]} 35. Nf2 {[%emt 0:01:12]} Rg7 {[%emt 0:00:20]} 36. a3 {[%emt 0:00:52]} Rg1 {[%emt 0:00:53]} 37. Ne4 {[%emt 0:00:39]} Rg2+ {[%emt 0:00:28]} 38. Kd1 {[%emt 0:00:01]} Ra2 {[%emt 0:00:26]} 39. Nc3 {[%emt 0:00:56]} Rxa3 {[%emt 0:00:28]} 0-1

[Event "EYCC 2017"]
[Site "Mamaia"]
[Date "2017.09.13"]
[Round "8"]
[White "Represa Perez, Mireya"]
[Black "Sliwicka, Alicja"]
[Result "0-1"]
[ECO "C47"]
[WhiteElo "2082"]
[BlackElo "2230"]
[Annotator "NA RC"]
[PlyCount "68"]
[EventDate "2017.??.??"]
[EventType "swiss"]
[EventCountry "ROU"]
[SourceTitle "playchess.com"]
[Source "ChessBase"]
[SourceQuality "1"]
[TimeControl "40/5400+30:1800+30"]

1. e4 {[%emt 0:00:00]} e5 {[%emt 0:00:05]} 2. Nf3 {[%emt 0:00:00]} Nc6 {[%emt 0:00:06]} 3. Nc3 {[%emt 0:00:00]} Nf6 {[%emt 0:00:08]} 4. d4 {[%emt 0:00:00]} exd4 {[%emt 0:01:10]} 5. Nxd4 {[%emt 0:00:07]} Bb4 {[%emt 0:02:21]} 6. Nxc6 {[%emt 0:00:48]} bxc6 {[%emt 0:00:15]} 7. Bd3 {[%emt 0:00:09]} d5 {[%emt 0:02:18]} 8. exd5 {[%emt 0:00:19]} cxd5 {[%emt 0:00:16]} 9. O-O {[%emt 0:00:12]} O-O {[%emt 0:00:22]} 10. Bg5 {[%emt 0:00:12]} Be7 {[%emt 0:02:49]} 11. Qf3 {[%emt 0:02:04]} c6 {[%emt 0:00:31]} 12. Rfe1 {[%emt 0:00:34]} Rb8 {[%emt 0:02:19]} 13. Na4 {[%emt 0:09:00]} h6 {[%emt 0:05:32]} 14. Bf4 {[%emt 0:18:05]} Rb4 {[%emt 0:06:45]} 15. b3 {[%emt 0:02:59]} Bg4 {[%emt 0:10:48]} 16. Qe3 {[%emt 0:03:41]} Re8 {[%emt 0:05:19]} 17. c4 {[%emt 0:07:16]} dxc4 {[%emt 0:08:22]} 18. Bxc4 {[%emt 0:00:54]} Rxc4 {[%emt 0:02:44]} 19. bxc4 {[%emt 0:06:56]} Bb4 {[%emt 0:00:19]} 20. Be5 {[%emt 0:04:02]} Bxe1 {[%emt 0:01:15]} 21. Rxe1 {[%emt 0:01:00]} Nd7 {[%emt 0:02:58]} 22. f4 {[%emt 0:03:36]} Qa5 {[%emt 0:05:31]} 23. Nc3 {[%emt 0:09:45]} f6 {[%emt 0:02:53]} 24. h3 {[%emt 0:09:36]} Bf5 {[%emt 0:02:59]} 25. g4 {[%emt 0:02:09]} Bg6 {[%emt 0:00:42]} 26. Rd1 {[%emt 0:09:21]} Nf8 {[%emt 0:02:14]} 27. Ne4 {[%emt 0:01:56]} Bxe4 {[%emt 0:02:29]} 28. Qxe4 {[%emt 0:00:08]} fxe5 {[%emt 0:00:35]} 29. Qxc6 {[%emt 0:01:07]} Qb6+ {[%emt 0:00:48]} 30. Qxb6 {[%emt 0:00:25]} axb6 {[%emt 0:00:06]} 31. Rd6 {[%emt 0:00:46]} Re6 {[%emt 0:02:03]} 32. fxe5 {[%emt 0:00:58]} Rxd6 {[%emt 0:00:17]} 33. exd6 {[%emt 0:01:31]} Kf7 {[%emt 0:00:54]} 34. Kf2 {[%emt 0:00:06]} Ke6 {[%emt 0:00:11]} 0-1

[Event "EYCC 2017"]
[Site "Mamaia"]
[Date "2017.09.13"]
[Round "8"]
[White "Tsaruk, Maksim"]
[Black "Luczak, Filip"]
[Result "0-1"]
[ECO "B94"]
[WhiteElo "2060"]
[BlackElo "1866"]
[Annotator "NA RC"]
[PlyCount "140"]
[EventDate "2017.??.??"]
[EventType "swiss"]
[EventCountry "ROU"]
[SourceTitle "playchess.com"]
[Source "ChessBase"]
[SourceQuality "1"]
[TimeControl "40/5400+30:1800+30"]

1. e4 c5 2. Nf3 d6 3. d4 Nf6 4. Nc3 cxd4 5. Nxd4 a6 6. Bg5 Nbd7 7. f4 Qc7 8. Qf3 g6 9. O-O-O Bg7 10. Be2 Rb8 11. Rhe1 b5 12. Nd5 Nxd5 13. exd5 Bb7 14. Bxb5 O-O 15. Bxd7 Qxd7 16. Rxe7 Qc8 17. f5 Be5 18. Bf4 Bxd5 19. Qxd5 Bxf4+ 20. Kb1 Be5 21. fxg6 hxg6 22. Rf1 Qc3 23. Rb7 Qxd4 24. Qxd4 Bxd4 25. Rxb8 Rxb8 26. b3 Kg7 27. c4 Re8 28. Rd1 Bc5 29. Rd2 Re1+ 30. Kb2 Rf1 31. Kc3 Rf2 32. Rxf2 Bxf2 33. Kb4 Be1+ 34. Ka4 a5 35. a3 Kf6 36. b4 axb4 37. axb4 Ke7 38. Kb5 Kd7 39. c5 dxc5 40. Kxc5 Kc7 41. b5 Bf2+ 42. Kd5 Bh4 43. b6+ Kxb6 44. Kd6 Kb5 45. g3 Kc4 46. gxh4 Kd4 47. Ke7 f5 48. Kf6 f4 49. Kxg6 f3 50. h5 f2 51. h6 f1=Q 52. Kg7 Qg2+ 53. Kh8 Qa8+ 54. Kg7 Qb7+ 55. Kg8 Qc8+ 56. Kg7 Qd7+ 57. Kg6 Qe6+ 58. Kg7 Qe7+ 59. Kg8 Qg5+ 60. Kh7 Ke5 61. h4 Qxh4 62. Kg6 Qe7 63. h7 Qf6+ 64. Kh5 Qh8 65. Kg6 Qf8 66. Kh5 Qg7 67. h8=Q Qxh8+ 68. Kg6 Qg8+ 69. Kh6 Kf6 70. Kh5 Qg5# 0-1

[Event "EYCC 2017"]
[Site "Mamaia"]
[Date "2017.09.13"]
[Round "8"]
[White "Aciu, Malina-Andreea"]
[Black "Lomandong Noela-Joyce"]
[Result "0-1"]
[ECO "D10"]
[WhiteElo "2058"]
[BlackElo "2040"]
[Annotator "NA RC"]
[PlyCount "136"]
[EventDate "2017.??.??"]
[EventType "swiss"]
[EventCountry "ROU"]
[SourceTitle "playchess.com"]
[Source "ChessBase"]
[SourceQuality "1"]
[TimeControl "40/5400+30:1800+30"]

1. d4 {[%emt 0:00:00]} d5 {[%emt 0:01:39]} 2. c4 {[%emt 0:00:00]} c6 {[%emt 0:00:41]} 3. e3 {[%emt 0:00:00]} g6 {[%emt 0:03:28]} 4. Nc3 {[%emt 0:00:06]} Bg7 {[%emt 0:00:10]} 5. Nf3 {[%emt 0:00:08]} Nf6 {[%emt 0:01:57]} 6. Bd3 {[%emt 0:00:36]} O-O {[%emt 0:16:14] LiveBook: 1107 Games} 7. O-O {[%emt 0:00:05]} b6 {[%emt 0:03:35]} 8. b3 {[%emt 0:06:04] D94: Grünfeld: 4 Nf3 Bg7 5 e3} (8. Qe2 Bb7 9. Rd1 Nbd7 10. e4 dxe4 11. Nxe4 Qc7 12. Nxf6+ exf6 13. Be3 c5 {½-½ (13) Real de Azua,E (2459)-Alonso,S (2483) Buenos Aires 2011}) 8... Bf5 $146 {[%emt 0:06:06]} ({Predecessor:} 8... Bb7 9. Ba3 Re8 10. cxd5 Nxd5 11. Ne2 Nd7 12. e4 Nc7 13. Rc1 Rc8 14. Bc4 b5 15. Bd3 a5 {1-0 (71) Nestorovic,L (2337)-Kamberovic,S (2259) Sarajevo 2014}) 9. Bb2 {[%emt 0:08:40]} ({White should play} 9. Bxf5 $16 gxf5 10. Ba3) 9... e6 {[%emt 0:14:18]} 10. Re1 {[%emt 0:05:59]} Ne4 {[%emt 0:05:36]} 11. Bxe4 {[%emt 0:09:54]} Bxe4 {[%emt 0:00:11]} 12. Nd2 {[%emt 0:00:09]} Bf5 {[%emt 0:05:30]} 13. f3 {[%emt 0:11:35]} (13. Rc1 $14) 13... e5 {[%emt 0:05:12]} 14. Ne2 {[%emt 0:01:28]} Re8 {[%emt 0:11:23]} 15. Nf1 {[%emt 0:13:53]} (15. cxd5 $14 cxd5 16. dxe5) 15... e4 {[%emt 0:03:52]} 16. Neg3 {[%emt 0:02:08]} Na6 {[%emt 0:05:03]} 17. a3 {[%emt 0:01:19]} Qf6 {[%emt 0:00:18]} 18. Nd2 {[%emt 0:01:16]} Nc5 {[%emt 0:03:25]} 19. Rf1 {[%emt 0:10:25]} Nd3 {[%emt 0:02:47]} 20. fxe4 {[%emt 0:02:52]} Qg5 {[%emt 0:01:33]} 21. exf5 {[%emt 0:10:24]} Qxe3+ {[%emt 0:00:30]} 22. Kh1 {[%emt 0:00:09]} Nxb2 {[%emt 0:01:00]} 23. Qc2 {[%emt 0:00:45]} Qxd4 {[%emt 0:01:54]} 24. Nf3 {[%emt 0:05:45]} Qc3 {[%emt 0:00:38]} 25. Qxc3 {[%emt 0:03:31]} Bxc3 {[%emt 0:00:01]} 26. cxd5 {[%emt 0:00:33]} cxd5 {[%emt 0:00:11]} 27. Rac1 {[%emt 0:00:21]} Rac8 {[%emt 0:01:56]} 28. Rc2 $19 {[%emt 0:02:01]} d4 {[%emt 0:00:42]} 29. Rfc1 {[%emt 0:01:02]} Nd3 {[%emt 0:01:46]} 30. Rd1 {[%emt 0:00:21]} Nb2 {[%emt 0:00:25]} 31. Rdc1 {[%emt 0:00:05]} Nd3 {[%emt 0:00:59]} 32. Rd1 {[%emt 0:00:05]} Nf4 {[%emt 0:01:14]} 33. Rdc1 {[%emt 0:01:37]} Rcd8 {[%emt 0:00:29]} 34. h3 {[%emt 0:01:13]} Nd3 {[%emt 0:00:46]} 35. Rd1 {[%emt 0:01:18]} Ne1 {[%emt 0:00:41]} 36. Rf2 {[%emt 0:01:01]} Nxf3 {[%emt 0:00:19]} 37. Rxf3 {[%emt 0:00:26]} Re1+ {[%emt 0:00:46]} 38. Rf1 {[%emt 0:00:10]} Re3 {[%emt 0:00:31]} 39. Rf3 {[%emt 0:00:46]} Re1+ {[%emt 0:00:15]} 40. Rf1 {[%emt 0:00:00]} Re3 {[%emt 0:00:45]} 41. Rf3 {[%emt 0:02:47]} Rde8 {[%emt 0:00:11]} 42. Kh2 {[%emt 0:01:35]} Re1 {[%emt 0:04:33]} 43. Rdd3 {[%emt 0:02:08]} Ra1 {[%emt 0:00:53]} 44. fxg6 {[%emt 0:00:45]} hxg6 {[%emt 0:03:25]} 45. a4 {[%emt 0:01:45]} Rae1 {[%emt 0:00:43]} 46. h4 {[%emt 0:01:44]} Kg7 {[%emt 0:01:52]} 47. Kh3 {[%emt 0:00:45]} R8e5 {[%emt 0:02:47]} 48. Kg4 {[%emt 0:01:07]} Bb2 {[%emt 0:01:51]} 49. h5 {[%emt 0:01:11]} f5+ {[%emt 0:02:10]} 50. Kh3 {[%emt 0:01:34]} R1e3 {[%emt 0:02:11]} 51. hxg6 {[%emt 0:01:49]} Kxg6 {[%emt 0:01:08]} 52. Nf1 {[%emt 0:00:27]} Rxd3 {[%emt 0:00:53]} 53. Rxd3 {[%emt 0:00:05]} Re1 {[%emt 0:00:39]} 54. Rf3 {[%emt 0:01:21]} Bc1 {[%emt 0:03:45]} 55. g3 {[%emt 0:01:40]} d3 {[%emt 0:02:29]} 56. Rf2 {[%emt 0:03:01]} Re2 {[%emt 0:01:23]} 57. Rf3 {[%emt 0:00:29]} Re1 {[%emt 0:03:08]} 58. Rf2 {[%emt 0:00:09]} Be3 {[%emt 0:02:42]} 59. Nxe3 {[%emt 0:01:29]} Rxe3 {[%emt 0:00:03]} 60. Rd2 {[%emt 0:00:00]} f4 {[%emt 0:00:37]} 61. Kg4 {[%emt 0:00:27]} fxg3 {[%emt 0:01:46]} 62. Kf4 {[%emt 0:00:12]} Re2 {[%emt 0:00:31]} 63. Rxd3 {[%emt 0:00:11]} g2 {[%emt 0:00:04]} 64. Rg3+ {[%emt 0:01:33]} Kf6 {[%emt 0:00:01]} 65. b4 {[%emt 0:02:18]} Rb2 {[%emt 0:00:15]} 66. Kf3 {[%emt 0:01:48]} Rb3+ {[%emt 0:01:39]} 67. Kxg2 {[%emt 0:00:26]} Rxg3+ {[%emt 0:01:20]} 68. Kxg3 {[%emt 0:00:07]} Ke5 {[%emt 0:00:02]} 0-1

[Event "EYCC 2017"]
[Site "Mamaia"]
[Date "2017.09.13"]
[Round "8"]
[White "Berdnyk, Mariia"]
[Black "Esadze, Tamari"]
[Result "0-1"]
[ECO "B90"]
[WhiteElo "2055"]
[BlackElo "1863"]
[Annotator "NA RC"]
[PlyCount "126"]
[EventDate "2017.??.??"]
[EventType "swiss"]
[EventCountry "ROU"]
[SourceTitle "playchess.com"]
[Source "ChessBase"]
[SourceQuality "1"]
[TimeControl "40/5400+30:1800+30"]

1. e4 {[%emt 0:00:00]} c5 {[%emt 0:00:04]} 2. Nf3 {[%emt 0:00:00]} d6 {[%emt 0:00:06]} 3. d4 {[%emt 0:00:00]} cxd4 {[%emt 0:00:04]} 4. Nxd4 {[%emt 0:00:00]} Nf6 {[%emt 0:00:05]} 5. Nc3 {[%emt 0:00:00]} a6 {[%emt 0:00:07]} 6. Bc4 {[%emt 0:00:00]} e6 {[%emt 0:00:12]} 7. Bb3 {[%emt 0:00:00]} Be7 {[%emt 0:00:10]} 8. f4 {[%emt 0:00:18]} O-O {[%emt 0:02:29]} 9. Qf3 {[%emt 0:00:16]} Nbd7 {[%emt 0:06:44] B86: Sizilianisch (Sosin-Angriff)} (9... Qc7 10. Be3 b5 11. e5 Bb7 12. exf6 Bxf3 13. fxe7 Qxe7 14. Nxf3 Nd7 15. O-O Nc5 16. f5 Nxb3 17. axb3 {½-½ (26) Tomczak,J (2564)-So,W (2705) Kazan 2013}) 10. g4 {[%emt 0:10:42]} Nc5 {[%emt 0:08:41]} (10... d5 $1 $15 11. exd5 Nc5) 11. Be3 {[%emt 0:07:22]} (11. g5 $14 {bleibt weiter vorne.}) 11... b5 {[%emt 0:15:35]} 12. Nc6 {[%emt 0:13:50]} Qc7 {[%emt 0:09:17]} 13. e5 $146 {[%emt 0:18:18]} ({Vorgänger:} 13. Nxe7+ Qxe7 14. g5 Nfxe4 15. Bxc5 Nxc5 16. Qxa8 Bb7 17. Qa7 Qc7 18. Bd5 exd5 19. Nxd5 Re8+ 20. Kd2 Qc6 21. Nb4 Qg2+ 22. Kc3 Re3+ 23. Nd3 Rxd3+ 24. cxd3 Na4+ 25. Kb4 Qd2+ {0-1 (25) Drzymala,G (1987)-Mazurkiewicz,M (2124) Koszalin 2005}) 13... Bb7 {[%emt 0:08:32]} 14. Nxe7+ {[%emt 0:00:10]} Qxe7 {[%emt 0:00:04]} 15. exf6 {[%emt 0:00:31]} Qxf6 {[%emt 0:00:29]} 16. Qf1 {[%emt 0:00:39]} Bxh1 {[%emt 0:02:51]} 17. Qxh1 {[%emt 0:00:05]} b4 {[%emt 0:07:36]} 18. Nd1 {[%emt 0:03:07]} Rac8 {[%emt 0:03:34]} 19. Qg2 {[%emt 0:04:45]} d5 $14 {[%emt 0:04:35]} (19... a5 $11) 20. Bxc5 {[%emt 0:06:24]} Rxc5 {[%emt 0:00:10]} 21. Qf2 {[%emt 0:00:19]} d4 {[%emt 0:03:26]} 22. g5 {[%emt 0:04:48]} Qd8 {[%emt 0:01:09]} 23. Qg3 {[%emt 0:01:13]} e5 {[%emt 0:04:43]} 24. f5 {[%emt 0:02:56]} e4 {[%emt 0:00:40]} 25. g6 {[%emt 0:00:37]} Kh8 {[%emt 0:05:18]} 26. gxf7 {[%emt 0:09:56]} Rxf5 {[%emt 0:01:43]} 27. Nf2 {[%emt 0:00:58]} Rg5 {[%emt 0:02:15]} 28. Ng4 {[%emt 0:00:06]} h5 {[%emt 0:03:50]} 29. h3 {[%emt 0:00:51]} g6 {[%emt 0:00:51]} 30. O-O-O {[%emt 0:01:40]} hxg4 {[%emt 0:00:41]} 31. hxg4 {[%emt 0:00:13]} Kg7 {[%emt 0:00:24]} 32. Qf4 {[%emt 0:00:46]} Qf6 {[%emt 0:02:28]} 33. Qxe4 {[%emt 0:01:41]} a5 {[%emt 0:02:01]} 34. Re1 {[%emt 0:07:01]} Rc5 {[%emt 0:02:09]} 35. Be6 {[%emt 0:03:26]} d3 {[%emt 0:01:37]} 36. Qxd3 {[%emt 0:03:29]} Re5 {[%emt 0:00:04]} 37. Rxe5 {[%emt 0:00:46]} Qxe5 {[%emt 0:00:02]} 38. Bb3 {[%emt 0:00:46]} Rh8 {[%emt 0:03:45]} 39. c3 {[%emt 0:00:56]} Qe1+ {[%emt 0:00:33]} 40. Bd1 {[%emt 0:00:00]} Kxf7 {[%emt 0:00:40]} 41. Qd5+ {[%emt 0:09:24]} Qe6 {[%emt 0:07:24]} 42. Qd4 {[%emt 0:01:55]} Rh1 {[%emt 0:00:52]} 43. c4 {[%emt 0:00:38]} Re1 {[%emt 0:03:32]} 44. c5 {[%emt 0:06:26]} Qe3+ {[%emt 0:02:46]} 45. Qxe3 {[%emt 0:00:17]} Rxe3 {[%emt 0:00:04]} 46. c6 {[%emt 0:00:25]} Ke7 {[%emt 0:00:43]} 47. Kd2 {[%emt 0:01:22]} Rg3 {[%emt 0:00:31]} 48. Ke1 {[%emt 0:01:51]} Rg1+ {[%emt 0:01:06]} 49. Kd2 {[%emt 0:00:30]} Rg2+ {[%emt 0:00:28]} 50. Be2 {[%emt 0:00:52]} Kd6 {[%emt 0:00:17]} 51. Ke3 {[%emt 0:01:33]} g5 {[%emt 0:03:25]} 52. a4 {[%emt 0:01:47]} bxa3 {[%emt 0:02:54]} 53. bxa3 {[%emt 0:00:04]} Rg1 {[%emt 0:00:04]} 54. a4 {[%emt 0:01:20]} Kxc6 {[%emt 0:00:20]} 55. Bb5+ {[%emt 0:00:19]} Kd5 {[%emt 0:00:06]} 56. Kf3 {[%emt 0:00:14]} Kd4 {[%emt 0:00:40]} 57. Bc6 {[%emt 0:00:46]} Ra1 {[%emt 0:00:46]} 58. Bd7 {[%emt 0:00:33]} Ra3+ {[%emt 0:00:05]} 59. Kg2 {[%emt 0:00:04]} Kc4 {[%emt 0:01:15]} 60. Kf2 {[%emt 0:00:22]} Kb4 {[%emt 0:00:07]} 61. Ke2 {[%emt 0:00:46]} Rxa4 {[%emt 0:00:21]} 62. Kd3 {[%emt 0:00:07]} Ra1 {[%emt 0:00:23]} 63. Ke4 {[%emt 0:00:07]} Rf1 {[%emt 0:00:08]} 0-1

[Event "EYCC 2017"]
[Site "Mamaia"]
[Date "2017.09.13"]
[Round "8"]
[White "Sucikova, Svetlana"]
[Black "Karykowska, Anna"]
[Result "1/2-1/2"]
[ECO "A46"]
[WhiteElo "2055"]
[BlackElo "1884"]
[Annotator "NA RC"]
[PlyCount "75"]
[EventDate "2017.??.??"]
[EventType "swiss"]
[EventCountry "ROU"]
[SourceTitle "playchess.com"]
[Source "ChessBase"]
[SourceQuality "1"]
[TimeControl "40/5400+30:1800+30"]

1. d4 {[%emt 0:00:35]} Nf6 {[%emt 0:00:27]} 2. Nf3 {[%emt 0:00:31]} e6 {[%emt 0:00:35]} 3. g3 {[%emt 0:00:47]} c5 {[%emt 0:01:45]} 4. Bg2 {[%emt 0:00:44]} cxd4 {[%emt 0:01:20]} 5. Nxd4 {[%emt 0:01:44]} d5 {[%emt 0:01:06]} 6. O-O {[%emt 0:01:11]} e5 {[%emt 0:02:02]} 7. Nb3 {[%emt 0:01:51]} Be6 {[%emt 0:02:08]} 8. Bg5 {[%emt 0:07:13]} Nbd7 {[%emt 0:02:33]} 9. Nc3 {[%emt 0:07:39]} Be7 {[%emt 0:05:36]} 10. Qd2 {[%emt 0:06:37]} h6 {[%emt 0:06:35]} 11. Bxf6 {[%emt 0:00:53]} Nxf6 {[%emt 0:00:12]} 12. Rad1 {[%emt 0:02:56]} e4 {[%emt 0:06:26]} 13. Kh1 {[%emt 0:08:14]} Qd7 {[%emt 0:14:18]} 14. Qd4 {[%emt 0:08:07]} a6 {[%emt 0:03:28]} 15. f3 {[%emt 0:10:54]} exf3 {[%emt 0:04:13]} 16. Bxf3 {[%emt 0:00:09]} Rd8 {[%emt 0:01:37]} 17. Nc5 {[%emt 0:01:39]} Qc6 {[%emt 0:03:28]} 18. Nd3 {[%emt 0:05:01]} O-O {[%emt 0:05:26]} 19. Nb4 {[%emt 0:01:56]} Bxb4 {[%emt 0:05:11]} 20. Qxb4 {[%emt 0:00:10]} b5 {[%emt 0:03:07]} 21. Rd4 {[%emt 0:00:50]} Rd7 {[%emt 0:06:36]} 22. Rfd1 {[%emt 0:00:48]} Rfd8 {[%emt 0:01:39]} 23. Qa5 {[%emt 0:00:52]} Rb8 {[%emt 0:05:33]} 24. R1d2 {[%emt 0:04:31]} g6 {[%emt 0:05:31]} 25. a3 {[%emt 0:05:27]} Kh7 {[%emt 0:02:28]} 26. Qb4 {[%emt 0:00:37]} Rbd8 {[%emt 0:01:33]} 27. Rh4 {[%emt 0:00:40]} Qd6 {[%emt 0:03:20]} 28. Qd4 {[%emt 0:09:41]} Qe7 {[%emt 0:03:34]} 29. Qe3 {[%emt 0:01:26]} h5 {[%emt 0:00:42]} 30. Rhd4 {[%emt 0:00:38]} Qd6 {[%emt 0:01:21]} 31. Qg5 {[%emt 0:00:46]} Kg7 {[%emt 0:01:31]} 32. e4 {[%emt 0:01:24]} Nh7 {[%emt 0:00:25]} 33. Qh4 {[%emt 0:01:14]} Qe5 {[%emt 0:00:38]} 34. exd5 {[%emt 0:02:50]} Nf6 {[%emt 0:00:32]} 35. Re2 {[%emt 0:02:12]} Qf5 {[%emt 0:00:28]} 36. Rf4 {[%emt 0:00:39]} Qh3 {[%emt 0:00:32]} 37. Qxf6+ {[%emt 0:00:26]} Kh7 {[%emt 0:00:06]} 38. Bg2 {[%emt 0:00:10]} 1/2-1/2

[Event "EYCC 2017"]
[Site "Mamaia"]
[Date "2017.09.13"]
[Round "8"]
[White "Fiszer, Bartosz"]
[Black "Maurizzi, Marc Andria"]
[Result "1/2-1/2"]
[ECO "C70"]
[WhiteElo "2009"]
[BlackElo "1947"]
[Annotator "NA RC"]
[PlyCount "88"]
[EventDate "2017.??.??"]
[EventType "swiss"]
[EventCountry "ROU"]
[SourceTitle "playchess.com"]
[Source "ChessBase"]
[SourceQuality "1"]
[TimeControl "40/5400+30:1800+30"]

1. e4 e5 2. Nf3 Nc6 3. Bb5 a6 4. Ba4 g6 5. c3 Bg7 {C70: Ruy Lopez: 3...a6 4 Ba4, Norwegian and Delayed Schliemann} (5... d6 6. d4 Bd7 7. dxe5 Nxe5 8. Nxe5 dxe5 9. Be3 Nf6 10. Nd2 b5 11. Bb3 Bd6 12. Qf3 h6 13. a4 Rb8 14. axb5 axb5 15. O-O {1-0 (36) Sutovsky,E (2650)-Rodshtein,M (2701) Poikovsky 2017}) 6. d4 exd4 7. cxd4 b5 8. Bc2 d6 9. Nc3 Nge7 10. Be3 $146 ({Predecessor:} 10. h3 O-O 11. O-O Bb7 12. Bg5 h6 13. Be3 Na5 {0-1 (30) Popilski,G (2389)-Gopal,G (2572) New Delhi 2012}) 10... Bg4 11. Qd2 O-O 12. h4 d5 13. e5 h5 14. Bg5 Qd7 15. O-O-O Nf5 16. Ne2 a5 17. Rde1 a4 18. Ng3 Nxg3 19. fxg3 b4 20. Bb1 Rfb8 21. Bf6 Na5 22. Bxg7 Kxg7 23. Bd3 Nc4 24. Qe2 $17 ({White should play} 24. Qf4 $15) 24... Bf5 25. e6 Qxe6 26. Qxe6 Bxe6 27. Ng5 Rb6 28. Rhf1 Raa6 29. Rf2 f6 30. Nf3 Rc6 31. Kb1 Rab6 32. Rfe2 Bf7 33. Re7 Nd6 34. Rd7 Rb8 35. Ree7 Rc8 36. Ne5 fxe5 37. dxe5 Ne4 38. Rxf7+ Kg8 39. Rg7+ Kh8 40. Rh7+ Kg8 41. Rdg7+ Kf8 42. Rf7+ Kg8 43. Rfg7+ Kf8 44. Rf7+ Kg8 1/2-1/2

[Event "EYCC 2017"]
[Site "Mamaia"]
[Date "2017.09.13"]
[Round "8"]
[White "Miroshnik, Ekaterina"]
[Black "Vidruk, Mariia"]
[Result "1-0"]
[ECO "E01"]
[WhiteElo "2006"]
[BlackElo "1848"]
[Annotator "NA RC"]
[PlyCount "111"]
[EventDate "2017.??.??"]
[EventType "swiss"]
[EventCountry "ROU"]
[SourceTitle "playchess.com"]
[Source "ChessBase"]
[SourceQuality "1"]
[TimeControl "40/5400+30:1800+30"]

1. d4 {[%emt 0:00:00]} Nf6 {[%emt 0:00:08]} 2. c4 {[%emt 0:00:00]} e6 {[%emt 0:00:07]} 3. g3 {[%emt 0:00:00]} d5 {[%emt 0:00:43]} 4. Bg2 {[%emt 0:00:18]} Bb4+ {[%emt 0:00:39]} 5. Bd2 {[%emt 0:00:13]} Be7 {[%emt 0:00:35]} 6. Nf3 {[%emt 0:01:28]} O-O {[%emt 0:00:38]} 7. O-O {[%emt 0:02:27]} b6 {[%emt 0:03:01]} 8. Nc3 {[%emt 0:03:25]} Bb7 {[%emt 0:02:00]} 9. cxd5 {[%emt 0:01:16]} exd5 {[%emt 0:00:38]} 10. Bf4 {[%emt 0:02:25]} c6 {[%emt 0:01:33]} 11. Rc1 {[%emt 0:00:32]} Nbd7 {[%emt 0:00:55]} 12. Re1 {[%emt 0:09:39]} Re8 {[%emt 0:05:21]} 13. Rc2 {[%emt 0:13:31]} Bf8 {[%emt 0:11:18]} 14. Bc1 {[%emt 0:18:01]} Ne4 {[%emt 0:10:34]} 15. Nd2 {[%emt 0:01:54]} f5 {[%emt 0:04:09]} 16. Ndxe4 {[%emt 0:03:38]} fxe4 {[%emt 0:01:13]} 17. f3 {[%emt 0:06:20]} exf3 {[%emt 0:09:08]} 18. Bxf3 {[%emt 0:01:22]} Nf6 {[%emt 0:02:15]} 19. Bg5 {[%emt 0:03:24]} Be7 {[%emt 0:07:30]} 20. Kg2 {[%emt 0:04:08]} Ne4 {[%emt 0:02:53]} 21. Bxe7 {[%emt 0:04:29]} Qxe7 {[%emt 0:00:57]} 22. e3 {[%emt 0:15:05]} Rf8 {[%emt 0:05:32]} 23. Nxe4 {[%emt 0:01:22]} dxe4 {[%emt 0:00:23]} 24. Bg4 {[%emt 0:00:25]} Rf6 {[%emt 0:02:47]} 25. Rf1 {[%emt 0:01:36]} Raf8 {[%emt 0:01:00]} 26. Rxf6 {[%emt 0:01:10]} Qxf6 {[%emt 0:01:43]} 27. Qe1 {[%emt 0:01:04]} Qg6 {[%emt 0:02:22]} 28. Bd1 {[%emt 0:01:58]} Ba6 {[%emt 0:10:17]} 29. Rf2 {[%emt 0:00:50]} Rxf2+ {[%emt 0:01:20]} 30. Qxf2 {[%emt 0:00:06]} Bc4 {[%emt 0:01:32]} 31. b3 {[%emt 0:00:28]} Bd5 {[%emt 0:00:46]} 32. Qf4 {[%emt 0:00:18]} Qe8 {[%emt 0:01:15]} 33. Qd6 {[%emt 0:01:07]} g6 {[%emt 0:02:32]} 34. Bg4 {[%emt 0:01:14]} Kg7 {[%emt 0:03:50]} 35. h4 {[%emt 0:01:33]} Qf8 {[%emt 0:01:43]} 36. Qe5+ {[%emt 0:00:21]} Qf6 {[%emt 0:00:27]} 37. Qc7+ {[%emt 0:00:33]} Qf7 {[%emt 0:00:16]} 38. Qe5+ {[%emt 0:00:11]} Qf6 {[%emt 0:00:28]} 39. Qc7+ {[%emt 0:00:06]} Qf7 {[%emt 0:00:10]} 40. Qd6 {[%emt 0:00:00]} Qf6 {[%emt 0:02:59]} 41. Qb8 {[%emt 0:16:17]} Qf7 {[%emt 0:01:32]} 42. Bd1 {[%emt 0:08:18]} h5 {[%emt 0:02:04]} 43. Qe5+ {[%emt 0:02:16]} Qf6 {[%emt 0:01:34]} 44. g4 {[%emt 0:02:56]} hxg4 {[%emt 0:03:28]} 45. Bxg4 {[%emt 0:01:04]} Kf7 {[%emt 0:01:57]} 46. Kg3 {[%emt 0:00:31]} b5 {[%emt 0:03:23]} 47. Qxf6+ {[%emt 0:01:03]} Kxf6 {[%emt 0:00:05]} 48. Kf4 {[%emt 0:00:04]} b4 {[%emt 0:01:08]} 49. Bd1 {[%emt 0:01:02]} a5 {[%emt 0:01:03]} 50. Bc2 {[%emt 0:00:04]} a4 {[%emt 0:03:23]} 51. Bxe4 {[%emt 0:00:53]} Bxe4 {[%emt 0:01:06]} 52. Kxe4 {[%emt 0:00:04]} axb3 {[%emt 0:00:14]} 53. axb3 {[%emt 0:00:01]} Ke6 {[%emt 0:00:16]} 54. Kd3 {[%emt 0:02:10]} Kd5 {[%emt 0:02:24]} 55. e4+ {[%emt 0:00:04]} Kd6 {[%emt 0:00:18]} 56. Kc4 {[%emt 0:00:10]} 1-0